Workbook

Sheet Sheet1
AD2: ゴールシーク
AB3: ANN | AD3: 変化させるセル | AE3: 数式入力セル
S4: n | T4: Re | U4: Y0 | V4: Y1 | W4: X2 | X4: X3 | Y4: X4 | Z4: X5 | AA4: X6 | AB4: f | AD4: f | AE4: 残余関数
S5: 1 | T5: 50000 | U5: =LOG10(T5) -> 4.698970004 | V5: =LOG10(S5) -> 0 | W5: =U5*0.426-2.405 -> -0.4032387782 | X5: =V5*2+0.398 -> 0.398 | Y5: =TANH((-2.291)-1.733*W5+0.252*X5) -> -0.9036721373 | Z5: =TANH((0.79)+0.418*W5-0.555*X5) -> 0.38042476 | AA5: =TANH((0.733)+0.826*Y5-0.632*Z5) -> -0.2485452075 | AB5: =AA5*0.0139+0.00862 -> 0.005165221615 | AD5: 0.005226501339 | AE5: =1/SQRT(AD5)-(4/S5^0.75)*LOG10(T5*AD5^(1-S5/2))+(0.4/S5^1.2) -> -6.540323838e-13
S6: 1 | T6: 100000 | U6: =LOG10(T6) -> 5 | V6: =LOG10(S6) -> 0 | W6: =U6*0.426-2.405 -> -0.275 | X6: =V6*2+0.398 -> 0.398 | Y6: =TANH((-2.291)-1.733*W6+0.252*X6) -> -0.9371521814 | Z6: =TANH((0.79)+0.418*W6-0.555*X6) -> 0.4253125196 | AA6: =TANH((0.733)+0.826*Y6-0.632*Z6) -> -0.3003326686 | AB6: =AA6*0.0139+0.00862 -> 0.004445375906 | AD6: 0.004500375731 | AE6: =1/SQRT(AD6)-(4/S6^0.75)*LOG10(T6*AD6^(1-S6/2))+(0.4/S6^1.2) -> -1.276756478e-14
S7: 1 | T7: 500000 | U7: 5.698970004 | V7: 0 | W7: 0.02276122185 | X7: 0.398 | Y7: -0.9771463362 | Z7: 0.5216647439 | AA7: -0.3832084768 | AB7: 0.003293402173 | AD7: 0.00329134901 | AE7: -1.413125172e-11
S8: 1 | T8: 1000000 | U8: 6 | V8: 0 | W8: 0.151 | X8: 0.398 | Y8: -0.9852868056 | Z8: 0.5595844591 | AA8: -0.4090787158 | AB8: 0.00293380585 | AD8: 0.002912819148 | AE8: -4.959366251e-13
S9: 1 | T9: 2000000 | U9: 6.301029996 | V9: 0 | W9: 0.2792387782 | X9: 0.398 | Y9: -0.9905415134 | Z9: 0.5952976064 | AA9: -0.4312370804 | AB9: 0.002625804583 | AD9: 0.002594539387 | AE9: -5.662137426e-15
S10: 0.8 | T10: 50000 | U10: 4.698970004 | V10: -0.09691001301 | W10: -0.4032387782 | X10: 0.204179974 | Y10: -0.9122435992 | Z10: 0.4684840219 | AA10: -0.3064249694 | AB10: 0.004360692925 | AD10: 0.004432472668 | AE10: 5.995204333e-15
S11: 0.8 | T11: 100000 | U11: 5 | V11: -0.09691001301 | W11: -0.275 | X11: 0.204179974 | Y11: -0.9428339777 | Z11: 0.5092599783 | AA11: -0.3519197398 | AB11: 0.003728315617 | AD11: 0.003787065625 | AE11: 5.995204333e-15
S12: 0.8 | T12: 500000 | U12: 5.698970004 | V12: -0.09691001301 | W12: 0.02276122185 | X12: 0.204179974 | Y12: -0.9792511637 | Z12: 0.5955315908 | AA12: -0.4237364351 | AB12: 0.002730063552 | AD12: 0.002726770869 | AE12: 2.08499884e-13
S13: 0.8 | T13: 1000000 | U13: 6 | V13: -0.09691001301 | W13: 0.151 | X13: 0.204179974 | Y13: -0.9866469576 | Z13: 0.6290231714 | AA13: -0.4458535285 | AB13: 0.002422635954 | AD13: 0.002399143263 | AE13: 9.510170429e-13
S14: 0.8 | T14: 2000000 | U14: 6.301029996 | V14: -0.09691001301 | W14: 0.2792387782 | X14: 0.204179974 | Y14: -0.9914179971 | Z14: 0.660331903 | AA14: -0.4646622358 | AB14: 0.002161194922 | AD14: 0.002125531035 | AE14: 2.965405699e-12
S15: 0.4 | T15: 50000 | U15: 4.698970004 | V15: -0.3979400087 | W15: -0.4032387782 | X15: -0.3978800173 | Y15: -0.9344589268 | Z15: 0.6870093219 | AA15: -0.4406627504 | AB15: 0.00249478777 | AD15: 0.002577295838 | AE15: 1.842970221e-14
S16: 0.4 | T16: 100000 | U16: 5 | V16: -0.3979400087 | W16: -0.275 | X16: -0.3978800173 | Y16: -0.9574776225 | Z16: 0.7142826163 | AA16: -0.4694020536 | AB16: 0.002095311455 | AD16: 0.002146134059 | AE16: -3.389708514e-10
S17: 0.4 | T17: 500000 | U17: 5.698970004 | V17: -0.3979400087 | W17: 0.02276122185 | X17: -0.3978800173 | Y17: -0.9846399365 | Z17: 0.7700040067 | AA17: -0.5131195957 | AB17: 0.00148763762 | AD17: 0.001468411377 | AE17: -1.272315586e-13
S18: 0.4 | T18: 1000000 | U18: 6 | V18: -0.3979400087 | W18: 0.151 | X18: -0.3978800173 | Y18: -0.9901245196 | Z18: 0.7909415371 | AA18: -0.5260860409 | AB18: 0.001307404031 | AD18: 0.001267857718 | AE18: -2.886579864e-15
S19: 0.4 | T19: 2000000 | U19: 6.301029996 | V19: -0.3979400087 | W19: 0.2792387782 | X19: -0.3978800173 | Y19: -0.993656994 | Z19: 0.8101774445 | AA19: -0.5369021273 | AB19: 0.00115706043 | AD19: 0.001104028616 | AE19: -3.898315004e-10
S20: 1.6 | T20: 50000 | U20: 4.698970004 | V20: 0.2041199827 | W20: -0.4032387782 | X20: 0.8062399653 | Y20: -0.8829539309 | Z20: 0.1722485146 | AA20: -0.1047948429 | AB20: 0.007163351684 | AD20: 0.007206420681 | AE20: 0
S21: 1.6 | T21: 100000 | U21: 5 | V21: 0.2041199827 | W21: -0.275 | X21: 0.8062399653 | Y21: -0.9233449083 | Z21: 0.2237372128 | AA21: -0.1694349089 | AB21: 0.006264854766 | AD21: 0.006305177948 | AE21: 3.524958103e-15
S22: 1.6 | T22: 500000 | U22: 5.698970004 | V22: 0.2041199827 | W22: 0.02276122185 | X22: 0.8062399653 | Y22: -0.9719985209 | Z22: 0.338193229 | AA22: -0.2762418981 | AB22: 0.004780237617 | AD22: 0.004762537691 | AE22: 3.524958103e-15
S23: 1.6 | T23: 1000000 | U23: 6 | V23: 0.2041199827 | W23: 0.151 | X23: 0.8062399653 | Y23: -0.9819559063 | Z23: 0.3847770202 | AA23: -0.3106590164 | AB23: 0.004301839671 | AD23: 0.004266310568 | AE23: 1.24067423e-14
S24: 1.6 | T24: 2000000 | U24: 6.301029996 | V24: 0.2041199827 | W24: 0.2792387782 | X24: 0.8062399653 | Y24: -0.9883932651 | Z24: 0.4294797806 | AA24: -0.3406644826 | AB24: 0.003884763691 | AD24: 0.003843135511 | AE24: 1.595945598e-14

Sheet Sheet2

Sheet Sheet3
